[Event "*** SCC Grand Prix: Titled Tuesday Blitz"]
[Site "Chess.com"]
[Date "2020.09.29"]
[Round "6"]
[White "queen_iryna"]
[Black "Eliwood44"]
[Result "0-1"]
[WhiteElo "2293"]
[BlackElo "2418"]
[TimeControl "180+1"]
[EndTime "11:04:40 PDT"]
[Termination "Eliwood44 won by resignation"]

1. e4 {[%clk 0:03:00.9]} 1... e5 {[%clk 0:02:54.4]} 2. Nf3 {[%clk 0:03:01]} 2...
Nc6 {[%clk 0:02:49.6]} 3. Bb5 {[%clk 0:03:00.1]} 3... a6 {[%clk 0:02:46.1]} 4.
Bxc6 {[%clk 0:03:00.1]} 4... bxc6 {[%clk 0:02:45.6]} 5. O-O {[%clk 0:03:00.3]}
5... d6 {[%clk 0:02:38.9]} 6. d4 {[%clk 0:02:57]} 6... f6 {[%clk 0:02:38.9]} 7.
dxe5 {[%clk 0:02:54.3]} 7... fxe5 {[%clk 0:02:38.6]} 8. Nxe5 {[%clk 0:02:46.5]}
8... dxe5 {[%clk 0:02:38.5]} 9. Qh5+ {[%clk 0:02:46.5]} 9... Kd7 {[%clk
0:02:32.8]} 10. Qf5+ {[%clk 0:02:34.1]} 10... Ke8 {[%clk 0:02:29.8]} 11. Qh5+
{[%clk 0:02:33.8]} 11... Kd7 {[%clk 0:02:29.6]} 12. Qf5+ {[%clk 0:01:54.2]}
12... Ke7 {[%clk 0:02:22.1]} 13. Qxe5+ {[%clk 0:01:43.6]} 13... Be6 {[%clk
0:02:21.8]} 14. Bg5+ {[%clk 0:01:32.7]} 14... Nf6 {[%clk 0:02:17.8]} 15. Nc3
{[%clk 0:01:26]} 15... Kf7 {[%clk 0:02:03.5]} 16. f4 {[%clk 0:01:22.5]} 16... h6
{[%clk 0:01:59.6]} 17. Bxf6 {[%clk 0:01:14]} 17... Qxf6 {[%clk 0:01:58.2]} 18.
Qxc7+ {[%clk 0:01:13.8]} 18... Qe7 {[%clk 0:01:57.9]} 19. Qxc6 {[%clk
0:01:06.2]} 19... Qc5+ {[%clk 0:01:57.6]} 20. Qxc5 {[%clk 0:01:05.7]} 20...
Bxc5+ {[%clk 0:01:58.5]} 21. Kh1 {[%clk 0:01:05.6]} 21... Rab8 {[%clk
0:01:58.6]} 22. Rab1 {[%clk 0:01:02]} 22... Bd4 {[%clk 0:01:56.9]} 23. Rfd1
{[%clk 0:00:54.5]} 23... Bxc3 {[%clk 0:01:53.6]} 24. bxc3 {[%clk 0:00:55.4]}
24... Bxa2 {[%clk 0:01:52.4]} 25. Ra1 {[%clk 0:00:54.4]} 25... Bc4 {[%clk
0:01:51.6]} 26. Rd4 {[%clk 0:00:51.5]} 26... Rhc8 {[%clk 0:01:48.7]} 27. g4
{[%clk 0:00:48.3]} 27... Rb2 {[%clk 0:01:47.6]} 28. e5 {[%clk 0:00:41.8]} 28...
Rxc2 {[%clk 0:01:46.6]} 29. Rd7+ {[%clk 0:00:38.6]} 29... Kg8 {[%clk 0:01:44.3]}
30. f5 {[%clk 0:00:32.2]} 30... Be2 {[%clk 0:01:41.5]} 31. h3 {[%clk 0:00:25.8]}
31... Bf3+ {[%clk 0:01:41.1]} 32. Kg1 {[%clk 0:00:26.3]} 32... Rg2+ {[%clk
0:01:36.7]} 33. Kf1 {[%clk 0:00:25.3]} 33... Rb2 {[%clk 0:01:31.7]} 34. e6
{[%clk 0:00:22.9]} 34... Be2+ {[%clk 0:01:16.8]} 35. Kg1 {[%clk 0:00:17.4]}
35... Bb5 {[%clk 0:01:16.8]} 36. Rb7 {[%clk 0:00:12.9]} 36... Rxc3 {[%clk
0:01:15.2]} 37. Rb8+ {[%clk 0:00:12.6]} 37... Kh7 {[%clk 0:01:14.1]} 38. Re1
{[%clk 0:00:13.2]} 38... Rg3+ {[%clk 0:01:13.1]} 39. Kh1 {[%clk 0:00:10.9]}
39... Bc6+ {[%clk 0:01:13.2]} 0-1

[Event "*** SCC Grand Prix: Titled Tuesday Blitz"]
[Site "Chess.com"]
[Date "2020.09.29"]
[Round "6"]
[White "geordie_derraugh"]
[Black "Chessbard1972"]
[Result "1-0"]
[WhiteElo "2405"]
[BlackElo "2300"]
[TimeControl "180+1"]
[EndTime "11:04:41 PDT"]
[Termination "geordie_derraugh won by checkmate"]

1. e4 {[%clk 0:03:00.5]} 1... c5 {[%clk 0:02:59.1]} 2. Nf3 {[%clk 0:03:00.4]}
2... a6 {[%clk 0:02:59.1]} 3. d3 {[%clk 0:02:59.2]} 3... Nc6 {[%clk 0:02:58.2]}
4. g3 {[%clk 0:02:59.3]} 4... g6 {[%clk 0:02:58.1]} 5. Bg2 {[%clk 0:02:59.2]}
5... Bg7 {[%clk 0:02:59]} 6. O-O {[%clk 0:02:59.4]} 6... d6 {[%clk 0:02:59.9]}
7. Re1 {[%clk 0:02:58.2]} 7... e5 {[%clk 0:03:00.8]} 8. Be3 {[%clk 0:02:56.1]}
8... Nge7 {[%clk 0:03:01.1]} 9. a4 {[%clk 0:02:55.8]} 9... O-O {[%clk
0:02:59.8]} 10. Nbd2 {[%clk 0:02:55.9]} 10... h6 {[%clk 0:02:59.5]} 11. Nc4
{[%clk 0:02:55.8]} 11... b6 {[%clk 0:02:54.4]} 12. Qd2 {[%clk 0:02:55.4]} 12...
Kh7 {[%clk 0:02:53.4]} 13. c3 {[%clk 0:02:48.5]} 13... Be6 {[%clk 0:02:48.9]}
14. b3 {[%clk 0:02:45.4]} 14... f5 {[%clk 0:02:42.7]} 15. b4 {[%clk 0:02:18.5]}
15... Rb8 {[%clk 0:02:28.8]} 16. bxc5 {[%clk 0:02:15.6]} 16... bxc5 {[%clk
0:02:28.1]} 17. exf5 {[%clk 0:02:13.1]} 17... gxf5 {[%clk 0:02:26.3]} 18. a5
{[%clk 0:02:08.6]} 18... Qe8 {[%clk 0:02:19.6]} 19. Nxd6 {[%clk 0:02:06.8]}
19... Qh5 {[%clk 0:02:15]} 20. Bxc5 {[%clk 0:02:03.5]} 20... Bd5 {[%clk
0:02:14]} 21. Nh4 {[%clk 0:01:58.1]} 21... Bxg2 {[%clk 0:02:09.7]} 22. Nxg2
{[%clk 0:01:57.2]} 22... f4 {[%clk 0:02:06.5]} 23. Qe2 {[%clk 0:01:44.1]} 23...
f3 {[%clk 0:02:03]} 24. Qe4+ {[%clk 0:01:43.9]} 24... Ng6 {[%clk 0:02:01.9]} 25.
Nh4 {[%clk 0:01:14.7]} 25... Ne7 {[%clk 0:02:01.1]} 26. Nc4 {[%clk 0:01:07.1]}
26... Rf4 {[%clk 0:01:57.9]} 27. gxf4 {[%clk 0:00:35.9]} 27... Qxh4 {[%clk
0:01:57]} 28. Qxf3 {[%clk 0:00:30.2]} 28... Nxf4 {[%clk 0:01:53.3]} 29. Bxe7
{[%clk 0:00:29.2]} 29... Qxe7 {[%clk 0:01:48.4]} 30. Qxf4 {[%clk 0:00:29.4]}
30... Qd7 {[%clk 0:01:33.9]} 31. Nxe5 {[%clk 0:00:24.3]} 31... Qh3 {[%clk
0:01:31.4]} 32. Qe4+ {[%clk 0:00:19.1]} 32... Kg8 {[%clk 0:01:30]} 33. Qd5+
{[%clk 0:00:18.2]} 33... Kh7 {[%clk 0:01:30.1]} 34. Qf3 {[%clk 0:00:17.8]} 34...
Qh4 {[%clk 0:01:26.6]} 35. Qe4+ {[%clk 0:00:16.5]} 35... Qxe4 {[%clk 0:01:26.3]}
36. Rxe4 {[%clk 0:00:17.4]} 36... Rb2 {[%clk 0:01:25.9]} 37. d4 {[%clk
0:00:17.3]} 37... Rc2 {[%clk 0:01:25.5]} 38. Re3 {[%clk 0:00:16.9]} 38... Bf6
{[%clk 0:01:24.5]} 39. Rb1 {[%clk 0:00:16.2]} 39... Bg5 {[%clk 0:01:24.4]} 40.
Rf3 {[%clk 0:00:15.8]} 40... Bd2 {[%clk 0:01:21.1]} 41. Rb7+ {[%clk 0:00:15.7]}
41... Kg8 {[%clk 0:01:20.7]} 42. Ng6 {[%clk 0:00:15.7]} 42... Rc1+ {[%clk
0:01:20.6]} 43. Kg2 {[%clk 0:00:16.1]} 43... Rxc3 {[%clk 0:01:15.4]} 44. Rf8#
{[%clk 0:00:16.1]} 1-0

[Event "*** SCC Grand Prix: Titled Tuesday Blitz"]
[Site "Chess.com"]
[Date "2020.09.29"]
[Round "6"]
[White "killer311"]
[Black "Savagelittlemole"]
[Result "0-1"]
[WhiteElo "2444"]
[BlackElo "2612"]
[TimeControl "180+1"]
[EndTime "11:04:43 PDT"]
[Termination "Savagelittlemole won by resignation"]

1. d4 {[%clk 0:03:00.9]} 1... Nf6 {[%clk 0:02:59.3]} 2. c4 {[%clk 0:03:00.5]}
2... g6 {[%clk 0:02:59.3]} 3. g3 {[%clk 0:02:59.3]} 3... Bg7 {[%clk 0:02:59.8]}
4. Bg2 {[%clk 0:02:59.5]} 4... O-O {[%clk 0:02:59.6]} 5. Nf3 {[%clk 0:03:00.4]}
5... d6 {[%clk 0:02:59.3]} 6. Nc3 {[%clk 0:03:00.3]} 6... Nbd7 {[%clk
0:02:57.8]} 7. O-O {[%clk 0:03:00.2]} 7... e5 {[%clk 0:02:56.8]} 8. dxe5 {[%clk
0:03:01.1]} 8... Nxe5 {[%clk 0:02:55.6]} 9. Nxe5 {[%clk 0:03:00.7]} 9... dxe5
{[%clk 0:02:56.5]} 10. Qxd8 {[%clk 0:03:00]} 10... Rxd8 {[%clk 0:02:57.4]} 11.
Bg5 {[%clk 0:03:00.5]} 11... h6 {[%clk 0:02:26.5]} 12. Bxf6 {[%clk 0:02:55.9]}
12... Bxf6 {[%clk 0:02:27.4]} 13. Nd5 {[%clk 0:02:56.5]} 13... Kg7 {[%clk
0:02:23.7]} 14. Nxc7 {[%clk 0:02:56.1]} 14... Rb8 {[%clk 0:02:23.8]} 15. Nd5
{[%clk 0:02:56.6]} 15... Be6 {[%clk 0:02:21.3]} 16. Rfd1 {[%clk 0:02:53.1]}
16... b6 {[%clk 0:02:13.6]} 17. Rac1 {[%clk 0:02:51.1]} 17... Rbc8 {[%clk
0:02:11.8]} 18. b3 {[%clk 0:02:50.8]} 18... Bg5 {[%clk 0:02:04.1]} 19. e3 {[%clk
0:02:47.7]} 19... f5 {[%clk 0:02:00.5]} 20. h4 {[%clk 0:02:43.5]} 20... Bf6
{[%clk 0:02:00]} 21. Nxf6 {[%clk 0:02:43.4]} 21... Kxf6 {[%clk 0:02:00]} 22. Kf1
{[%clk 0:02:42.9]} 22... g5 {[%clk 0:01:51.8]} 23. hxg5+ {[%clk 0:02:41.7]}
23... hxg5 {[%clk 0:01:52.7]} 24. Ke2 {[%clk 0:02:41.8]} 24... e4 {[%clk
0:01:47.3]} 25. g4 {[%clk 0:02:27.7]} 25... Ke5 {[%clk 0:01:37.9]} 26. gxf5
{[%clk 0:02:26.1]} 26... Bxf5 {[%clk 0:01:38.8]} 27. Rh1 {[%clk 0:02:20.5]}
27... Bg4+ {[%clk 0:01:34.6]} 28. f3 {[%clk 0:02:19.9]} 28... exf3+ {[%clk
0:01:33.9]} 29. Bxf3 {[%clk 0:02:20.8]} 29... Bxf3+ {[%clk 0:01:32.6]} 30. Kxf3
{[%clk 0:02:21.7]} 30... Rd2 {[%clk 0:01:28.6]} 31. Rcd1 {[%clk 0:02:15.4]}
31... Rf8+ {[%clk 0:01:26.6]} 32. Kg3 {[%clk 0:02:12.7]} 32... Rxa2 {[%clk
0:01:19.2]} 33. Rd5+ {[%clk 0:02:09.6]} 33... Ke4 {[%clk 0:01:17.1]} 34. Rxg5
{[%clk 0:02:06.3]} 34... Rf3+ {[%clk 0:01:13.5]} 35. Kh4 {[%clk 0:01:58.2]}
35... Kxe3 {[%clk 0:01:12.6]} 36. Rd1 {[%clk 0:01:51.8]} 36... Rh2+ {[%clk
0:01:08.1]} 37. Kg4 {[%clk 0:01:51.3]} 37... Rg2+ {[%clk 0:01:08.3]} 38. Kh5
{[%clk 0:01:50.5]} 38... Rxg5+ {[%clk 0:01:06.6]} 39. Kxg5 {[%clk 0:01:51.4]}
39... Ke4 {[%clk 0:00:58.2]} 40. Ra1 {[%clk 0:01:44.5]} 40... a5 {[%clk
0:00:55]} 41. c5 {[%clk 0:01:44.2]} 41... Rf5+ {[%clk 0:00:52.1]} 42. Kg4 {[%clk
0:01:44.2]} 42... Rxc5 {[%clk 0:00:53]} 43. Re1+ {[%clk 0:01:43.7]} 43... Kd3
{[%clk 0:00:50.3]} 44. Kf4 {[%clk 0:01:44]} 44... Rc3 {[%clk 0:00:45.2]} 45.
Re3+ {[%clk 0:01:42]} 45... Kc2 {[%clk 0:00:44.9]} 46. Re6 {[%clk 0:01:40]}
46... Rxb3 {[%clk 0:00:44.8]} 47. Ke4 {[%clk 0:01:40.3]} 47... a4 {[%clk
0:00:42.6]} 48. Kd4 {[%clk 0:01:41.2]} 48... a3 {[%clk 0:00:42.3]} 49. Kc4
{[%clk 0:01:41]} 49... b5+ {[%clk 0:00:37.5]} 50. Kd4 {[%clk 0:01:40.8]} 50...
a2 {[%clk 0:00:36.3]} 51. Re2+ {[%clk 0:01:41.3]} 51... Kb1 {[%clk 0:00:30.7]}
52. Re1+ {[%clk 0:01:41]} 52... Kb2 {[%clk 0:00:30.5]} 53. Re2+ {[%clk
0:01:41.3]} 53... Ka3 {[%clk 0:00:30.4]} 54. Re1 {[%clk 0:01:41]} 54... Rb1
{[%clk 0:00:30]} 55. Re3+ {[%clk 0:01:40.7]} 55... Ka4 {[%clk 0:00:28.2]} 0-1

[Event "*** SCC Grand Prix: Titled Tuesday Blitz"]
[Site "Chess.com"]
[Date "2020.09.29"]
[Round "6"]
[White "barbara25"]
[Black "stefy02"]
[Result "0-1"]
[WhiteElo "2337"]
[BlackElo "2273"]
[TimeControl "180+1"]
[EndTime "11:04:43 PDT"]
[Termination "stefy02 won by checkmate"]

1. e4 {[%clk 0:03:00.9]} 1... c5 {[%clk 0:02:59.4]} 2. Nf3 {[%clk 0:03:00.4]}
2... Nc6 {[%clk 0:02:58.6]} 3. g3 {[%clk 0:03:00.1]} 3... g6 {[%clk 0:02:56.2]}
4. Bg2 {[%clk 0:02:59.4]} 4... Bg7 {[%clk 0:02:56.4]} 5. O-O {[%clk 0:02:59.4]}
5... d6 {[%clk 0:02:55.5]} 6. Re1 {[%clk 0:02:59.3]} 6... Nf6 {[%clk 0:02:54.8]}
7. c3 {[%clk 0:02:59.4]} 7... O-O {[%clk 0:02:53.5]} 8. d3 {[%clk 0:02:59]} 8...
Qc7 {[%clk 0:02:38.8]} 9. Nbd2 {[%clk 0:02:58.7]} 9... b5 {[%clk 0:02:38.5]} 10.
Nf1 {[%clk 0:02:58.5]} 10... Bb7 {[%clk 0:02:38]} 11. h3 {[%clk 0:02:57.9]}
11... e6 {[%clk 0:02:38]} 12. Be3 {[%clk 0:02:56.7]} 12... Ne7 {[%clk
0:02:37.1]} 13. Qd2 {[%clk 0:02:56.8]} 13... d5 {[%clk 0:02:34.4]} 14. exd5
{[%clk 0:02:56.4]} 14... Nexd5 {[%clk 0:02:26.7]} 15. Bh6 {[%clk 0:02:56.6]}
15... c4 {[%clk 0:02:16.8]} 16. Bxg7 {[%clk 0:02:54.6]} 16... Kxg7 {[%clk
0:02:16.5]} 17. d4 {[%clk 0:02:55.1]} 17... Ne7 {[%clk 0:02:14.4]} 18. g4 {[%clk
0:02:54.6]} 18... Ned5 {[%clk 0:01:59.1]} 19. Ng3 {[%clk 0:02:53]} 19... Nf4
{[%clk 0:01:57.7]} 20. g5 {[%clk 0:02:40.5]} 20... Nd7 {[%clk 0:01:45.7]} 21.
Ne4 {[%clk 0:02:31.9]} 21... Nxg2 {[%clk 0:01:37.8]} 22. Kxg2 {[%clk 0:02:30.6]}
22... f5 {[%clk 0:01:37.8]} 23. Nc5 {[%clk 0:02:13.6]} 23... Nxc5 {[%clk
0:01:33.2]} 24. dxc5 {[%clk 0:02:12.6]} 24... e5 {[%clk 0:01:23.2]} 25. Qe3
{[%clk 0:01:58.9]} 25... Rae8 {[%clk 0:01:14]} 26. Kg1 {[%clk 0:01:52.3]} 26...
f4 {[%clk 0:01:08.6]} 27. Qe2 {[%clk 0:01:40.5]} 27... e4 {[%clk 0:01:07.7]} 28.
Nd4 {[%clk 0:01:39.9]} 28... Qxc5 {[%clk 0:01:07]} 29. Qg4 {[%clk 0:01:36.7]}
29... Bc8 {[%clk 0:01:04]} 30. Qg2 {[%clk 0:01:29.4]} 30... f3 {[%clk
0:00:49.8]} 31. Qg3 {[%clk 0:01:29]} 31... e3 {[%clk 0:00:46.6]} 32. Rxe3 {[%clk
0:01:23.9]} 32... Rxe3 {[%clk 0:00:46]} 33. fxe3 {[%clk 0:01:24]} 33... f2+
{[%clk 0:00:46.1]} 34. Kf1 {[%clk 0:01:17.5]} 34... Qd5 {[%clk 0:00:39.9]} 35.
Ke2 {[%clk 0:01:11]} 35... Qe4 {[%clk 0:00:33.3]} 36. Rd1 {[%clk 0:01:02.4]}
36... Qd3+ {[%clk 0:00:23.8]} 37. Rxd3 {[%clk 0:00:54.7]} 37... f1=Q+ {[%clk
0:00:23.6]} 38. Kd2 {[%clk 0:00:53.5]} 38... Qxd3+ {[%clk 0:00:24.1]} 39. Ke1
{[%clk 0:00:51.3]} 39... Rf1# {[%clk 0:00:24.2]} 0-1

[Event "*** SCC Grand Prix: Titled Tuesday Blitz"]
[Site "Chess.com"]
[Date "2020.09.29"]
[Round "6"]
[White "korkmaz16"]
[Black "GianmarcoVaR"]
[Result "0-1"]
[WhiteElo "2348"]
[BlackElo "2538"]
[TimeControl "180+1"]
[EndTime "11:04:44 PDT"]
[Termination "GianmarcoVaR won by resignation"]

1. d4 {[%clk 0:03:00.9]} 1... d5 {[%clk 0:02:55.5]} 2. Nf3 {[%clk 0:03:00.2]}
2... Nf6 {[%clk 0:02:54.9]} 3. e3 {[%clk 0:02:59.3]} 3... Bf5 {[%clk 0:02:53.6]}
4. Bd3 {[%clk 0:02:57.9]} 4... Bg6 {[%clk 0:02:51.9]} 5. c4 {[%clk 0:02:56]}
5... c6 {[%clk 0:02:46.1]} 6. O-O {[%clk 0:02:45.4]} 6... e6 {[%clk 0:02:33]} 7.
b3 {[%clk 0:02:44.5]} 7... Bd6 {[%clk 0:02:29.4]} 8. Bb2 {[%clk 0:02:43.5]} 8...
Nbd7 {[%clk 0:02:27]} 9. Ne5 {[%clk 0:02:42.5]} 9... Qe7 {[%clk 0:02:21.8]} 10.
f4 {[%clk 0:02:41.6]} 10... Bxd3 {[%clk 0:02:20.9]} 11. Qxd3 {[%clk 0:02:34.5]}
11... Ne4 {[%clk 0:02:21.2]} 12. Nd2 {[%clk 0:01:51.7]} 12... Nxd2 {[%clk
0:02:15.6]} 13. Qxd2 {[%clk 0:01:50.5]} 13... Nf6 {[%clk 0:02:15.7]} 14. f5
{[%clk 0:01:44.2]} 14... Ne4 {[%clk 0:02:10.1]} 15. Qd3 {[%clk 0:01:43.6]} 15...
f6 {[%clk 0:02:06.7]} 16. Nf3 {[%clk 0:01:20.8]} 16... exf5 {[%clk 0:01:55.6]}
17. cxd5 {[%clk 0:01:20.5]} 17... cxd5 {[%clk 0:01:55.9]} 18. Rac1 {[%clk
0:01:07.9]} 18... a6 {[%clk 0:01:50.3]} 19. Rc2 {[%clk 0:01:01.7]} 19... O-O
{[%clk 0:01:47.6]} 20. Nh4 {[%clk 0:01:00.6]} 20... g6 {[%clk 0:01:47.1]} 21.
Nf3 {[%clk 0:00:57.2]} 21... Rac8 {[%clk 0:01:45.7]} 22. Rfc1 {[%clk 0:00:56.2]}
22... Qd7 {[%clk 0:01:45.5]} 23. a3 {[%clk 0:00:53.3]} 23... Kg7 {[%clk
0:01:28.8]} 24. b4 {[%clk 0:00:53.1]} 24... b5 {[%clk 0:01:18.6]} 25. Ne1 {[%clk
0:00:51.1]} 25... Rc4 {[%clk 0:01:17.5]} 26. Qe2 {[%clk 0:00:49.9]} 26... Rfc8
{[%clk 0:01:15.7]} 27. Nd3 {[%clk 0:00:50.1]} 27... Qc7 {[%clk 0:01:12.3]} 28.
Rxc4 {[%clk 0:00:48.3]} 28... Bxh2+ {[%clk 0:01:10.7]} 29. Kf1 {[%clk 0:00:41]}
29... dxc4 {[%clk 0:01:10.8]} 30. Ke1 {[%clk 0:00:31.8]} 30... Qg3+ {[%clk
0:01:06.5]} 31. Nf2 {[%clk 0:00:29.9]} 31... Re8 {[%clk 0:01:02.8]} 32. d5
{[%clk 0:00:24.1]} 32... Bg1 {[%clk 0:00:51.5]} 33. Kf1 {[%clk 0:00:17.4]} 33...
Bxf2 {[%clk 0:00:50.8]} 34. Qf3 {[%clk 0:00:16.9]} 34... Nd2+ {[%clk 0:00:45.7]}
0-1

[Event "*** SCC Grand Prix: Titled Tuesday Blitz"]
[Site "Chess.com"]
[Date "2020.09.29"]
[Round "6"]
[White "BigAl"]
[Black "Evandro_Barbosa"]
[Result "0-1"]
[WhiteElo "2508"]
[BlackElo "2726"]
[TimeControl "180+1"]
[EndTime "11:04:47 PDT"]
[Termination "Evandro_Barbosa won by resignation"]

1. e4 {[%clk 0:03:00.9]} 1... c5 {[%clk 0:02:59.6]} 2. Nc3 {[%clk 0:03:00.4]}
2... e6 {[%clk 0:02:51]} 3. Nf3 {[%clk 0:02:58.3]} 3... Nc6 {[%clk 0:02:50.9]}
4. g3 {[%clk 0:02:58.7]} 4... Nf6 {[%clk 0:02:49.9]} 5. Bg2 {[%clk 0:02:58.8]}
5... d6 {[%clk 0:02:50.2]} 6. O-O {[%clk 0:02:58.4]} 6... Be7 {[%clk 0:02:50.8]}
7. Re1 {[%clk 0:02:59.1]} 7... O-O {[%clk 0:02:50.7]} 8. e5 {[%clk 0:02:57.2]}
8... dxe5 {[%clk 0:02:50]} 9. Nxe5 {[%clk 0:02:57.7]} 9... Nxe5 {[%clk
0:02:48.2]} 10. Rxe5 {[%clk 0:02:58.3]} 10... Qc7 {[%clk 0:02:46.7]} 11. Re1
{[%clk 0:02:57.8]} 11... Bd7 {[%clk 0:02:45.9]} 12. d3 {[%clk 0:02:56.4]} 12...
Bc6 {[%clk 0:02:46]} 13. a4 {[%clk 0:02:48]} 13... b6 {[%clk 0:02:42.5]} 14. Bf4
{[%clk 0:02:43]} 14... Qb7 {[%clk 0:02:42.5]} 15. Bxc6 {[%clk 0:02:41.8]} 15...
Qxc6 {[%clk 0:02:41.8]} 16. Qe2 {[%clk 0:02:37.2]} 16... Rfd8 {[%clk 0:02:40.7]}
17. Ne4 {[%clk 0:02:26.5]} 17... Rac8 {[%clk 0:02:39.9]} 18. b3 {[%clk
0:02:13.7]} 18... Nd5 {[%clk 0:02:39.6]} 19. Bd2 {[%clk 0:02:13.7]} 19... a6
{[%clk 0:02:35.5]} 20. h4 {[%clk 0:01:54.9]} 20... Bf8 {[%clk 0:02:29]} 21. Qh5
{[%clk 0:01:43.9]} 21... g6 {[%clk 0:02:13.9]} 22. Qe2 {[%clk 0:01:43.5]} 22...
Bg7 {[%clk 0:02:13.4]} 23. Rad1 {[%clk 0:01:42.6]} 23... b5 {[%clk 0:02:11.8]}
24. axb5 {[%clk 0:01:42.2]} 24... axb5 {[%clk 0:02:12.7]} 25. h5 {[%clk
0:01:21.3]} 25... Rd7 {[%clk 0:02:12]} 26. hxg6 {[%clk 0:01:20.9]} 26... hxg6
{[%clk 0:02:12]} 27. c4 {[%clk 0:01:13.7]} 27... Ne7 {[%clk 0:02:11]} 28. Bg5
{[%clk 0:01:10.6]} 28... Nf5 {[%clk 0:01:49.8]} 29. Nf6+ {[%clk 0:01:06]} 29...
Bxf6 {[%clk 0:01:18.8]} 30. Bxf6 {[%clk 0:01:06]} 30... Nd4 {[%clk 0:01:18.1]}
31. Qe4 {[%clk 0:00:55.1]} 31... e5 {[%clk 0:00:52.6]} 32. Qg4 {[%clk
0:00:22.8]} 32... Nf3+ {[%clk 0:00:41.9]} 33. Kf1 {[%clk 0:00:22.8]} 33... Nh2+
{[%clk 0:00:41.6]} 0-1

[Event "*** SCC Grand Prix: Titled Tuesday Blitz"]
[Site "Chess.com"]
[Date "2020.09.29"]
[Round "6"]
[White "Matols"]
[Black "ChelsieMonica"]
[Result "1-0"]
[WhiteElo "2262"]
[BlackElo "2363"]
[TimeControl "180+1"]
[EndTime "11:04:48 PDT"]
[Termination "Matols won by checkmate"]

1. d4 {[%clk 0:03:00.9]} 1... c5 {[%clk 0:02:58.5]} 2. d5 {[%clk 0:03:00.4]}
2... Nf6 {[%clk 0:02:58.1]} 3. c4 {[%clk 0:02:59.9]} 3... g6 {[%clk 0:02:58.4]}
4. Nc3 {[%clk 0:02:59.4]} 4... Bg7 {[%clk 0:02:58.8]} 5. e4 {[%clk 0:02:59.6]}
5... d6 {[%clk 0:02:59.3]} 6. h3 {[%clk 0:02:58.8]} 6... O-O {[%clk 0:02:59.4]}
7. Nf3 {[%clk 0:02:58.8]} 7... a6 {[%clk 0:02:58.8]} 8. a4 {[%clk 0:02:56.2]}
8... e5 {[%clk 0:02:55.8]} 9. Bd3 {[%clk 0:02:41.9]} 9... Nh5 {[%clk 0:02:53.8]}
10. g3 {[%clk 0:02:17.8]} 10... Qe8 {[%clk 0:02:36.8]} 11. g4 {[%clk 0:01:57.4]}
11... Nf4 {[%clk 0:02:35]} 12. Bf1 {[%clk 0:01:52.2]} 12... f5 {[%clk
0:02:27.8]} 13. gxf5 {[%clk 0:01:51.2]} 13... gxf5 {[%clk 0:02:28.7]} 14. Be3
{[%clk 0:01:43.9]} 14... Qh5 {[%clk 0:02:24.8]} 15. Rg1 {[%clk 0:01:25.6]} 15...
Kh8 {[%clk 0:02:24.2]} 16. Ng5 {[%clk 0:01:16.4]} 16... Qxd1+ {[%clk 0:02:19.4]}
17. Rxd1 {[%clk 0:01:15.6]} 17... h6 {[%clk 0:01:45.7]} 18. Bxf4 {[%clk
0:01:10.4]} 18... exf4 {[%clk 0:01:45.5]} 19. Ne6 {[%clk 0:01:10.4]} 19... Bxe6
{[%clk 0:01:45.8]} 20. dxe6 {[%clk 0:01:10.4]} 20... Nc6 {[%clk 0:01:42.9]} 21.
Rxd6 {[%clk 0:01:01.3]} 21... Nd4 {[%clk 0:01:41.2]} 22. Be2 {[%clk 0:00:56.5]}
22... f3 {[%clk 0:01:34.6]} 23. Bd1 {[%clk 0:00:55.7]} 23... Rae8 {[%clk
0:01:20.6]} 24. Rd7 {[%clk 0:00:54.9]} 24... Nxe6 {[%clk 0:01:18.6]} 25. Bxf3
{[%clk 0:00:46.1]} 25... fxe4 {[%clk 0:01:17.8]} 26. Bh5 {[%clk 0:00:42.3]}
26... Rd8 {[%clk 0:01:04.4]} 27. Re7 {[%clk 0:00:42.3]} 27... Nf4 {[%clk
0:01:01.4]} 28. Rgxg7 {[%clk 0:00:32.7]} 28... Rf5 {[%clk 0:00:59.9]} 29. Rh7+
{[%clk 0:00:30.1]} 29... Kg8 {[%clk 0:01:00.1]} 30. Reg7+ {[%clk 0:00:30.3]}
30... Kf8 {[%clk 0:01:00.5]} 31. Rf7+ {[%clk 0:00:30.7]} 31... Kg8 {[%clk
0:00:57]} 32. Rxf5 {[%clk 0:00:27.2]} 32... Nd3+ {[%clk 0:00:56.8]} 33. Ke2
{[%clk 0:00:24.3]} 33... Kxh7 {[%clk 0:00:57.3]} 34. Nd5 {[%clk 0:00:22.4]}
34... Kg7 {[%clk 0:00:54.5]} 35. Rf7+ {[%clk 0:00:22]} 35... Kg8 {[%clk
0:00:49.5]} 36. Nf6+ {[%clk 0:00:22.2]} 36... Kh8 {[%clk 0:00:47.1]} 37. Rh7#
{[%clk 0:00:22.3]} 1-0